Cogmind - Beta 13 @@@ ROGUE MODE // 2024.04.09 @ 20:51:41 Player: Andru7428 Result: Destroyed by J6-GW0(R) with Subdweller Laser Performance ------------- Evolutions (0) 0 Regions Visited (2) 400 Robots Destroyed (33) 165 Value Destroyed (719) 719 Prototype IDs (0) 0 Alien Tech Used (0) 0 Bonus (0) 0 TOTAL SCORE: 1284 Bonus ------- None Cogmind --------- Core Integrity 0/250 Matter 169/300 Energy 220/250 System Corruption 0% Temperature Cool (6) Movement Rolling (105) Location -10/Subcaves Parts ------- > --- POWER (1) -------- Ion Engine > --- PROPULSION (2) --- Compact Wheel Subdweller Monowheel > --- UTILITY (2) ------ Medium Storage Unit Makeshift Light Armor Plating > --- WEAPON (2) ------- Battle Rifle Battle Cannon > --- INVENTORY (10) --- Subdweller Power Source High-capacity Matter Pod (118) Subdweller Optics Improved Terrain Scanner Seismic Detector Makeshift Thermal Plating Subdweller Machine Gun Mining Laser Multitool Shrapnel Trap Peak State ------------ > --- POWER ------------ Ion Engine > --- PROPULSION ------- Compact Wheel Subdweller Monowheel > --- UTILITY ---------- Medium Storage Unit Makeshift Light Armor Plating > --- WEAPON ----------- Battle Rifle Makeshift Shrapnel Gun > --- INVENTORY -------- Ion Engine Compact Wheel Improved Heat Sink High-capacity Matter Pod Subdweller Optics Improved Terrain Scanner Seismic Detector Makeshift Thermal Plating Light Assault Rifle Mining Laser [Rating: 16] Favorites ----------- Power Ion Engine Engine Ion Engine Propulsion Light Treads Treads Light Treads Wheel Compact Wheel Utility Medium Storage Unit Device Seismic Detector Storage Medium Storage Unit Protection Light Armor Plating Weapon Assault Rifle Ballistic Gun Assault Rifle Ballistic Cannon Light Cannon Special Weapon Mining Laser Build | -11 -10 -10 ------- Run | Yrd Mat Sub Slots Evolved . | . . . Power . | . . . Propulsion . | . . . Utility . | . . . Weapon . | . . . Parts Attached 43 | 7 8 28 Power 3 | 1 1 1 Engine 3 | 1 1 1 Core . | . . . Reactor . | . . . Propulsion 9 | 2 1 6 Treads 3 | 2 1 . Leg . | . . . Wheel 6 | . . 6 Hover . | . . . Flight . | . . . Utility 10 | 2 2 6 Device 4 | 1 . 3 Storage 2 | 1 1 . Processor . | . . . Hackware . | . . . Protection 4 | . 1 3 Artifact . | . . . Weapon 21 | 2 4 15 Energy Gun . | . . . Energy Cannon . | . . . Ballistic Gun 12 | 2 2 8 Ballistic Cannon 4 | . 2 2 Launcher . | . . . Special Weapon 5 | . . 5 Impact Weapon . | . . . Slashing Weapon . | . . . Piercing Weapon . | . . . Special Melee Weapon . | . . . Unidentified Prototypes . | . . . Parts Lost 10 | . 3 7 Power 2 | . 1 1 Propulsion 5 | . 1 4 Utility 1 | . 1 . Weapon 2 | . . 2 Highest Loss Streak 3 | . 1 3 To Critical Strikes . | . . . Average Slot Usage (%) 97 | . 100 94 Engine 13 | . 14 13 Treads 15 | . 28 4 Wheel 10 | . . 19 Device 6 | . 6 6 Storage 14 | . 14 14 Protection 7 | . 7 7 Ballistic Gun 21 | . 19 22 Ballistic Cannon 5 | . 8 3 Naked Turns . | . . . Heaviest Build 24 | 12 22 24 Greatest Support 40 | 40 40 40 Greatest Overweight (x) 1 | . . 1 Average Overweight (x) . | . . . Largest Inventory Capacity 10 | 8 10 10 Average Capacity 9 | 7 8 10 Most Carried 10 | 8 9 10 Average Carried 8 | 4 7 9 Final Capacity 10 | 8 10 10 Final Carried 10 | 7 9 10 Class Distribution -------------------- 100% | Mutant Dominant Class ---------------- Mutant | -10/Materials Mutant | -10/Subcaves Resources | -11 -10 -10 ----------- Run | Yrd Mat Sub Matter Collected 1420 | 231 375 814 Remotely . | . . . Salvage Created 897 | 119 417 361 Parts 65 | 5 35 25 Haulers Intercepted . | . . . Recyclers Shooed 1 | 1 . . Parts Field Recycled . | . . . Retrieved Matter . | . . . Parts Self-Destructed 15 | . . 15 Prevented . | . . . Kills | -11 -10 -10 ------- Run | Yrd Mat Sub Combat Hostiles Destroyed 25 | . 15 10 Guns 17 | . 8 9 Cannons 8 | . 7 1 Classes Destroyed 9 | 2 5 2 Worker 1 | . 1 . Tunneler 2 | 2 . . Recycler 1 | 1 . . Mechanic 1 | . 1 . Turret 2 | . . 2 Watcher 1 | . 1 . Swarmer 12 | . 6 6 Grunt 9 | . 9 . Subdweller 4 | . . 4 Best Kill Streak 5 | 3 5 3 Combat Bots Only 5 | . 5 3 Max Kills in Single Turn 2 | 1 2 1 Gunslinging 1 | . 1 . Exploded . | . . . Melee . | . . . Uniques/NPCs Destroyed . | . . . Combat | -11 -10 -10 -------- Run | Yrd Mat Sub Hostile Shots Fired 240 | . 100 140 Missed 75 | . 31 44 Damage Taken 1829 | . 689 1140 Core 261 | . 104 157 Absorbed by Shields . | . . . Ignored by Resistances 25 | . . 25 Core Remaining (%) 100 | 100 . . Volleys Fired 160 | 11 50 99 Largest 2 | 2 2 2 Hottest 125 | 40 55 125 Shots Fired 278 | 22 100 156 Gun 228 | 22 67 139 Cannon 40 | . 33 7 Launcher . | . . . Special 10 | . . 10 Kinetic 268 | 22 100 146 Thermal 10 | . . 10 Explosive . | . . . Electromagnetic . | . . . Robot Hit Streak 19 | 10 12 19 Robot Miss Streak 4 | 2 4 4 Penetration Max . | . . . Secondary Targets 4 | . 3 1 Max Gunslinging Chain 1 | . 1 1 Shots Hit Robots 175 | 16 58 101 Core Hits 54 | 5 23 26 Critical Kills . | . . . Critical Parts Destroyed 2 | . 1 1 Critical Strikes 3 | . 2 1 Destroy 2 | . 1 1 Blast 1 | . 1 . Melee Attacks . | . . . Impact . | . . . Slashing . | . . . Piercing . | . . . Sneak Attacks . | . . . Combat Hostiles . | . . . Follow-up Attacks . | . . . Damage Inflicted 2300 | 165 860 1275 Guns 1856 | 165 465 1226 Cannons 444 | . 395 49 Explosions . | . . . Melee . | . . . Ramming . | . . . Kinetic 2300 | 165 860 1275 Thermal . | . . . Explosive . | . . . Electromagnetic . | . . . Impact . | . . . Slashing . | . . . Piercing . | . . . Highest Corruption . | . . . Average Corruption . | . . . Corruption Purged . | . . . Corruption Blocked . | . . . Overload Shots . | . . . Overflow Damage . | . . . Projectiles . | . . . Explosions . | . . . Melee . | . . . Knockbacks 5 | . 5 . Impact . | . . . Kinetic 5 | . 5 . Secondary . | . . . Self-Inflicted Damage . | . . . Shots . | . . . Rammed . | . . . Targets Rammed . | . . . Kicked . | . . . Crushed . | . . . Highest Temperature 111 | . 111 . Average Temperature 28 | . 28 . Received Heat Transfer 576 | . 240 336 Siege Activations . | . . . Robots Corrupted . | . . . Combat Hostiles . | . . . Parts Fried . | . . . Impact Corruptions . | . . . Robots Melted . | . . . Combat Hostiles . | . . . Parts Melted 1 | . . 1 Heat Transferred . | . . . Parts Sabotaged . | . . . Parts Stolen . | . . . Parts Stripped . | . . . Power Chain Reactions . | . . . Alert | -11 -10 -10 ------- Run | Yrd Mat Sub Peak Influence 219 | 15 219 . Initial 9 | . 9 . Average 75 | 3 81 . Maximum Alert Level 1 | . 1 . Low Security (%) 90 | 100 90 . Level 1 9 | . 9 . Level 2 . | . . . Level 3 . | . . . Level 4 . | . . . Level 5 . | . . . High Security . | . . . Max Security . | . . . Squads Dispatched 5 | . 5 . Investigation 3 | . 3 . Extermination . | . . . Reinforcement 2 | . 2 . Assault . | . . . Garrison . | . . . Intercept . | . . . Searches Triggered . | . . . Construction Impeded . | . . . Haulers Reinforced . | . . . Active Scanning Responses . | . . . Cargo Convoy Interrupts . | . . . Stealth | -11 -10 -10 --------- Run | Yrd Mat Sub Distress Signals 1 | . 1 . Communications Jammed . | . . . Distress Signals . | . . . Times Spotted 72 | . 30 42 Peak Tracking Total 6 | . 6 5 Tactical Retreats 8 | . 3 5 Traps | -11 -10 -10 ------- Run | Yrd Mat Sub Traps Triggered 4 | . 3 1 Indirectly . | . . . Trap Hack Attempts . | . . . Triggered . | . . . Disarmed . | . . . Reprogrammed . | . . . Reused . | . . . Traps Extracted . | . . . Installed . | . . . Triggered . | . . . Most Traps Carried 1 | . . 1 Machines | -11 -10 -10 ---------- Run | Yrd Mat Sub Machines Disabled 2 | . 1 1 Max in Single Turn 1 | . 1 1 Machines Repaired . | . . . Machines Dismantled . | . . . Machines Sabotaged . | . . . Overloaded Fab Kills . | . . . Hacking | -11 -10 -10 --------- Run | Yrd Mat Sub Machines Accessed 6 | . 5 1 Terminals 5 | . 5 . Fabricators . | . . . Repair Stations . | . . . Recycling Units . | . . . Scanalyzers . | . . . Garrison Access . | . . . Total Hacks 22 | . 19 3 Successful 12 | . 9 3 Failed 9 | . 9 . Catastrophic 3 | . 3 . Database Lockouts 1 | . 1 . Manual 14 | . 14 . Terminals 19 | . 19 . Fabricators . | . . . Repair Stations . | . . . Recycling Units . | . . . Scanalyzers . | . . . Garrison Access . | . . . Terminal Hacks 10 | . 7 3 Record 3 | . . 3 Robot Analysis 1 | . 1 . Alert Level 1 | . 1 . Unreport Threat 1 | . 1 . Hauler Manifests 1 | . 1 . Registered Components 1 | . 1 . Registered Prototypes 1 | . 1 . Zone Layout 1 | . 1 . Fabricator Hacks . | . . . Repair Station Hacks . | . . . Recycling Unit Hacks . | . . . Scanalyzer . | . . . Garrison Access Hacks . | . . . Unauthorized Hacks 2 | . 2 . Terminals 2 | . 2 . Botnet 2 | . 2 . Fabricators . | . . . Repair Stations . | . . . Recycling Units . | . . . Scanalyzers . | . . . Garrison Access . | . . . Data Cores Recovered . | . . . Used . | . . . Hacking Detections 5 | . 5 . Full Trace Events . | . . . Feedback Events . | . . . Feedback Blocked . | . . . Robot Schematics Acquired . | . . . Robots Built . | . . . Authchips . | . . . Time . | . . . Total Robot Build Rating . | . . . Part Schematics Acquired . | . . . Parts Built . | . . . Authchips . | . . . Time . | . . . Total Part Build Rating . | . . . Parts Repaired . | . . . Time . | . . . Parts Recycled . | . . . Recycled Matter . | . . . Retrieved Matter . | . . . Retrieved Components . | . . . Parts Scanalyzed . | . . . Part Schematics Acquired . | . . . Parts Damaged . | . . . Bothacking | -11 -10 -10 ------------ Run | Yrd Mat Sub Used RIF Installer . | . . . Robots Hacked . | . . . Non-combat . | . . . Combat . | . . . Robot Hacks Applied . | . . . Relay Couplers Released . | . . . Fabnet Peak Effective % . | . . . Robots Rewired . | . . . Allies Hacked . | . . . Hacks Repelled . | . . . Allies | -11 -10 -10 -------- Run | Yrd Mat Sub Total Allies . | . . . Largest Group . | . . . Highest-Rated Group . | . . . Highest-Rated Ally . | . . . Total Orders . | . . . Ally Attacks . | . . . Total Damage . | . . . Kills . | . . . Allies Corrupted . | . . . Allies Melted . | . . . Intel | -11 -10 -10 ------- Run | Yrd Mat Sub Robot Analysis Total 1 | . 1 . Derelict Logs Recovered 1 | . . 1 Drone Launches . | . . . Drone Recoveries . | . . . Exploration | -11 -10 -10 ------------- Run | Yrd Mat Sub Turns Passed 3271 | 128 1488 1655 Spaces Moved 1913 | 55 749 1109 Core 7 | 7 . . Treads 957 | 48 749 160 Legs . | . . . Wheels 949 | . . 949 Hover . | . . . Flight . | . . . Fastest Speed 50 | 50 160 100 Average Speed 136 | 146 160 119 Slowest Speed 240 | 160 160 240 Overloaded Moves . | . . . Propulsion Burnouts . | . . . Robots Hopped . | . . . Cave-ins Triggered . | . . . Exploration Rate (%) 45 | 4 92 41 Regions Visited 2 Branch Regions 1 Pre-discovered Areas . | . . . Known Exits Taken . | . . . Unknown Exits Taken 2 | 1 1 . Scrap Searched 14 | . . 14 Spaces Dug 2 | . . 2 Terrain Destroyed 2 | . . 2 Melee . | . . . Projectile 2 | . . 2 AOE . | . . . Terrain Rammed . | . . . Walls Destroyed . | . . . Machines Disabled . | . . . Actions | -11 -10 -10 --------- Run | Yrd Mat Sub Total 2285 | 80 941 1264 Wait 137 | . 123 14 Move 1911 | 54 748 1109 Hop . | . . . Pick Up 21 | 8 7 6 Fast Attach 14 | 6 2 6 Attach 8 | 1 3 4 Detach . | . . . Swap 21 | . 3 18 Drop 13 | . 5 8 Fire 160 | 11 50 99 Melee . | . . . Ram . | . . . Kick . | . . . Crush . | . . . Escape Stasis . | . . . Rewire . | . . . Trap . | . . . Miscellaneous . | . . . Route ------- -11/Scrapyard -10/Materials (discovered 6 exits: [*Mat x3] / [*Min x2] / *Sub) -10/Subcaves (discovered 2 exits: Mat / [*Rec]) History --------- Turn | Location | Event 35 | -11/Scrapyard | Discovered new exit (range 16) 129 | -11/Scrapyard | Entered Materials 300 | -10/Materials | Discovered new exit (range 14) 307 | -10/Materials | Build established: Mutant 338 | -10/Materials | Central database locked down 475 | -10/Materials | Discovered new exit (range 8) 714 | -10/Materials | Discovered new exit (range 10) 1009 | -10/Materials | Discovered new exit (range 16) 1266 | -10/Materials | Discovered new exit (range 16) 1417 | -10/Materials | Discovered new exit (range 7) 1617 | -10/Materials | Entered Subcaves 1642 | -10/Subcaves | A swath of the cavern ceiling suddenly collapsed 1718 | -10/Subcaves | Identified exit to Materials 1895 | -10/Subcaves | Core integrity fell below 50% 2021 | -10/Subcaves | Core integrity fell below 20% 2229 | -10/Subcaves | Shifting Twisted Machinery released Mak. Laser 2232 | -10/Subcaves | Shifting Twisted Machinery released Shrapnel Trap 2510 | -10/Subcaves | Discovered new exit (range 14) 2750 | -10/Subcaves | Lost 3 parts (2n1w) 3001 | -10/Subcaves | Visited Clippyterm 3268 | -10/Subcaves | Ambushed by Subdweller buried in earth 3272 | -10/Subcaves | Destroyed by J6-GW0(R) with Subdweller Laser Last Messages --------------- 03004_ Current location identified: Subcaves >>Record! "Tab" It looks like you're biased against spaces, I think you need more help than I can offer. >>Record! "LU-1G1" It looks like you're researching the legendary digger of dangerously deep tunnels, unfortunately it seems not even members of the Boring Crew know what became of that one. >>Record! "01-MTF" It looks like you're after the notorious thief from 0b1. I don't know where they are, but my data indicates that someone they're looking for is frequently seen in Scraptown. 03039_ O8-MNO(R): "NOSTUCKSUB!" 03044_ O8-MNO(R) destroyed. 03062_ Acquired 24 matter. 03064_ Acquired 2 matter. 03136_ Acquired 15 matter. 03269_ J6-GW0(R): "NOSTUCKSUB!" Map ----- +----------------------------------------------------+ | ????????????????????????????????????????????? ? ? | | ??????????????????????????????????????????????? ?? | | ?????????????????????????????????????????????????? | | ?????????????????????????????????????????????????? | | ?????????????????????????????????????????????????? | | ?????????????????????????????????????????????????? | | ??????????????????????????????????????????????###? | | ??????????????????????????????????????????????# # | | ??????????????????????????????????????????????# | | ??????????????????????????????????????????????# | | ?????????????????????????????????????????????## | | ??????????????????????????????????????###????# | | ??????????????????????????????????????# ####??# | | ??????????????????????????????????????## #????# | | ???????????????????????????????????????# #?????# | | ???????????????????????????????????????# ##??#### | | ??????????????????????????????????#???## #### | | ??????????????????????????????????????# ## | | ??????????????????????????????????????## | | ???????????????????????????????????#??## | | ?????????????????????????????????????## | | ????????????????????????????????????## # | | ????????????????????????????????????# ### | | ??????????????????????????????#?????# ##?? | | ????????????????????????#####?????#?# ######??# | | ????????????????????????#@# ##?????## ##???????? | | ????????????????????????# R# #?????# #????????? | | ????????????????????????### ##?##### !##??###??? | | ??????????????????????????## ### ## ### ##?? | | ??????????????????????????#" ## ##? | | ??????????????????????????## # #? | | ??????????????????????????## ###? | | ??????????????????????????# ##### | | ??????????????????????????#"## ## #?# | | ??????????????????????????####### ###### #?# | | ??????????????????????????????#?######??# ### | | ????????????????????????????#????## #### ## | | ?????????????????????????????????# #### | | ??????????????????? ?????????????# ##??# | | ?????????????????????? ??????????# & ##?## | | ?????????????????????????????????## ##?## | | ??????????????????????????????????# ##??# | | ??????????????????????????????????# ###???## | | ??????????????????????????????????######??????### | | ???????????????????????????????????????????????### | | ?????????????????????????????????????????????????? | | ???????????????????????????????????????????????### | | ???????????????????????????????????????????????#"" | | ???????????????????????????????????????????????#"" | | ???????????????????????????????????????????????#"X | +----------------------------------------------------+ Best States ------------- Heat Dissipation 25 Energy Generation 10 Energy Capacity 250 Matter Stores 300 Matter Capacity 300 Sight Range 16 Terrain Scan Range 16 Terrain Scan Density 10 Armor Coverage 150 Resistance: TH 10 Evasion (%) 40 Recoil Reduction 2 Item Schematics ----------------- None Robot Schematics ------------------ None Fabricated ------------ Nothing Alien Tech Used ----------------- None Achievements -------------- None Challenges ------------ None Game ------ Seed AlertCryofiberTube Manual? 0 Play Time 00:26:46 Cumulative 180.0 hours Start 2024.04.09 @ 20:30:21 End 2024.04.09 @ 20:51:41 Sessions 1 Manual Loads 0 Difficulty Rogue Special Mode None Game No. 139 Rogue 139 Adventurer 0 Explorer 0 Win Type - Total 3 Types 3/0/0/0/0/0/0/0/0 Lore% 61 Gallery% 70 Achievement% 60 Wizard Run 0 Options --------- Layout 1 ASCII 0 Keyboard 1 Movement Numpad Keybinds 0 Fullscreen 1 Font 24/Smallcaps Map View 50x35 Zoom Use 0% Tactical HUD 1 Map Filters NONE Filters NONE Steam 1 RUN: 17d5525b-5761-481a-bbef-3c2dfdc09ec5